bitfinex-derivatives/quotes_ETHF0:USTF0_20250929
["timestamp","ask_amount","ask_price","bid_price","bid_amount"]
[1759135282233,0.7566,4126.3,4126.2,1.30158417]
[1759135283135,1.1927,4126.3,4126.2,1.30158417]
[1759135284127,1.1927,4126.3,4126.2,0.86548417]
[1759135284329,0.3247,4126.3,4126.2,1.30159417]
[1759135284525,0.9655,4126.3,4126.2,1.30159417]
[1759135284724,1.1916,4126.3,4126.2,1.30159417]
[1759135285829,0.7555,4126.3,4126.2,1.30159417]
[1759135286022,0.5294,4126.3,4126.2,1.30159417]
[1759135289034,0.9655,4126.3,4126.2,1.30159417]
[1759135289331,1.1916,4126.3,4126.2,1.30159417]
[1759135289535,0.7555,4126.3,4126.2,1.30159417]
[1759135290830,1.1916,4126.3,4126.2,1.30159417]
[1759135291536,1.1916,4126.3,4126.2,0.43611]
[1759135294936,0.7555,4126.3,4126.2,0.43611]
[1759135295134,0.3247,4126.3,4126.2,0.68111]
[1759135295438,0.4722,4126.5,4126.4,0.43609]
[1759135295626,0.4722,4126.5,4126.4,0.68109]
[1759135300143,0.4722,4126.5,4126.4,1.97900484]
[1759135301843,0.6769,4126.5,4126.4,1.97900484]
[1759135303243,0.4722,4126.5,4126.4,1.97900484]
[1759135304637,0.13882622,4127.0,4126.4,1.97900484]
[1759135304843,0.13882622,4127.0,4126.9,3.64384]
[1759135305044,0.13882622,4127.0,4126.9,4.75370892]
[1759135305343,0.47522622,4127.0,4126.9,3.88884]
[1759135306339,0.33942622,4127.0,4126.9,5.18675484]
[1759135306539,0.00302622,4127.0,4126.9,5.18675484]
[1759135307140,0.33942622,4127.0,4126.9,5.18675484]
[1759135307345,0.46862622,4127.0,4126.9,5.18675484]
[1759135308134,0.46862622,4127.0,4126.9,3.88884]
[1759135308645,0.33942622,4127.0,4126.9,3.88884]
[1759135309937,0.46862622,4127.0,4126.9,3.88884]
[1759135311350,0.67332622,4127.0,4126.9,3.64384]
[1759135311650,0.89942622,4127.0,4126.9,3.88884]
[1759135313453,0.67332622,4127.0,4126.9,3.88884]
[1759135313752,0.46862622,4127.0,4126.9,3.88884]
[1759135314251,0.46862622,4127.0,4126.9,4.75175686]
[1759135317357,0.68262622,4127.0,4126.9,4.50675686]
[1759135317550,0.88812622,4127.0,4126.9,4.75175686]
[1759135317852,0.88812622,4127.0,4126.9,3.88884]
[1759135319255,0.88812622,4127.0,4126.9,4.75175686]
[1759135319556,0.88812622,4127.0,4126.9,3.88884]
[1759135319957,1.32415622,4127.0,4126.9,3.4528]
[1759135322656,1.32415622,4127.0,4126.9,3.2078]
[1759135324360,6.32415622,4127.0,4126.9,3.2078]
[1759135327569,0.3372,4126.3,4126.2,0.245]
[1759135327870,1.1928,4126.3,4126.2,0.245]
[1759135329273,0.43613,4126.1,4126.0,1.29905686]
[1759135329577,0.3372,4126.4,4126.3,0.9057]
[1759135329768,1.46731622,4127.0,4126.4,0.2435]
[1759135329769,0.43606,4126.8,4126.4,0.2435]
[1759135330067,0.00302622,4127.0,4126.9,1.12634]
[1759135330269,0.00302622,4127.0,4126.9,1.37134]
[1759135330464,0.00302622,4127.0,4126.9,2.23425686]
[1759135331672,0.77625622,4127.0,4126.9,1.79821686]
[1759135331872,0.77625622,4127.0,4126.9,2.23425686]
[1759135332175,0.99025622,4127.0,4126.9,2.23425686]
[1759135334075,1.12455622,4127.0,4126.9,2.23425686]
[1759135334775,0.68852622,4127.0,4126.9,2.23425686]
[1759135337080,1.12455622,4127.0,4126.9,2.23425686]
[1759135337272,1.12455622,4127.0,4126.9,1.55471686]
[1759135337468,0.00302622,4127.0,4126.9,2.23415686]
[1759135337675,0.32942622,4127.0,4126.9,1.98915686]
[1759135337877,0.32942622,4127.0,4126.9,2.23415686]
[1759135341481,0.32942622,4127.0,4126.9,1.37124]
[1759135341881,0.32942622,4127.0,4126.9,2.23499597]
[1759135343277,0.32942622,4127.0,4126.9,1.37124]
[1759135343481,0.67032622,4127.0,4126.9,2.23502166]
[1759135343682,0.67032622,4127.0,4126.9,2.23503511]
[1759135345786,0.89552622,4127.0,4126.9,1.74663511]
[1759135345987,0.89552622,4127.0,4126.9,1.99166558]
[1759135346286,0.89552622,4127.0,4126.9,1.37024]
[1759135346884,0.67032622,4127.0,4126.9,1.37024]
[1759135348480,0.00302622,4127.0,4126.9,1.37024]
[1759135348686,0.00302622,4127.0,4126.9,2.66815484]
[1759135351272,0.00302622,4127.0,4126.9,1.37024]
[1759135353980,0.34182622,4127.0,4126.9,1.37024]
[1759135354889,0.34182622,4127.0,4126.9,2.66551813]
[1759135355488,0.34182622,4127.0,4126.9,1.37024]
[1759135356587,0.00302622,4127.0,4126.9,1.37024]
[1759135359094,0.3388,4127.7,4127.6,1.08797]
[1759135359393,0.3583,4128.0,4127.9,1.08794]
[1759135359595,0.3583,4128.0,4127.9,1.33294]
[1759135359893,0.6971,4128.0,4127.9,1.33294]
[1759135360191,0.70016656,4128.0,4127.9,1.33294]
[1759135361486,0.47546656,4128.0,4127.9,1.33294]
[1759135361981,0.92526656,4128.0,4127.9,1.33294]
[1759135362187,0.70016656,4128.0,4127.9,1.33294]
[1759135362388,0.34186656,4128.0,4127.9,1.33294]
[1759135362697,0.92496656,4128.0,4127.9,0.84554]
[1759135362999,0.69986656,4128.0,4127.9,1.33294]
[1759135363594,0.34186656,4128.0,4127.9,2.19676593]
[1759135363787,0.00306656,4128.0,4127.9,1.33294]
[1759135364497,0.34186656,4128.0,4127.9,1.33294]
[1759135364997,0.56656656,4128.0,4127.9,1.33294]
[1759135365299,0.56656656,4128.0,4127.9,2.62588825]
[1759135365986,0.69986656,4128.0,4127.9,1.09054]
[1759135366596,0.69986656,4128.0,4127.9,1.33294]
[1759135367201,0.92496656,4128.0,4127.9,1.09054]
[1759135367694,0.92496656,4128.0,4127.9,1.95208498]
[1759135367892,0.92496656,4128.0,4127.9,0.88504]
[1759135368594,0.92496656,4128.0,4127.9,0.64004]
[1759135368792,1.36088656,4128.0,4127.9,0.68094]
[1759135369295,0.4498,4127.8,4127.7,0.68095]
[1759135369499,0.7886,4127.8,4127.7,0.68095]
[1759135369697,0.7886,4127.7,4127.3,1.29754498]
[1759135369999,0.7886,4127.4,4127.3,0.436]
[1759135370187,1.22459,4127.4,4127.3,0.436]
[1759135370584,0.8858,4127.3,4127.2,0.68101]
[1759135370785,0.7886,4127.3,4127.2,0.68101]
[1759135370991,0.7886,4127.3,4127.2,1.09061]
[1759135371689,0.00306656,4128.0,4127.4,0.2424]
[1759135372004,0.58616656,4128.0,4127.9,0.64004]
[1759135372297,0.92496656,4128.0,4127.9,0.88504]
[1759135372498,0.92496656,4128.0,4127.9,1.33294]
[1759135372697,0.92496656,4128.0,4127.9,1.09054]
[1759135373100,0.47516656,4128.0,4127.9,1.33294]
[1759135373294,0.00306656,4128.0,4127.9,1.33294]
[1759135373994,0.31606656,4128.0,4127.9,1.33294]
[1759135375788,0.53746656,4128.0,4127.9,1.33294]
[1759135375992,0.67046656,4128.0,4127.9,1.33294]
[1759135376198,0.00306656,4128.0,4127.9,1.33294]
[1759135376503,0.67046656,4128.0,4127.9,1.33294]
[1759135376708,0.89306656,4128.0,4127.9,1.09054]
[1759135377194,0.757,4127.8,4127.7,0.86154498]
[1759135377390,1.19295,4127.8,4127.7,0.245]
[1759135377595,0.13606656,4128.0,4127.6,0.43597]
[1759135377596,0.97156,4127.7,4127.6,0.43597]
[1759135377793,1.19296,4127.7,4127.6,0.68097]
[1759135380801,0.577,4127.5,4127.4,1.29753498]
[1759135381100,0.89,4127.5,4127.4,1.54253498]
[1759135381301,0.89,4127.5,4127.4,1.74833498]
[1759135381502,0.89,4127.5,4127.4,0.88679]
[1759135381800,0.89,4127.5,4127.4,1.95453498]
[1759135385207,0.89,4127.5,4127.4,2.19813498]
[1759135385407,0.6674,4127.5,4127.4,2.19813498]
[1759135386108,0.13606656,4128.0,4127.9,1.09154]
[1759135386109,0.31606656,4128.0,4127.9,1.09154]
[1759135386410,0.00306656,4128.0,4127.9,1.33654]
[1759135386609,0.31606656,4128.0,4127.9,1.33654]
[1759135386809,0.67046656,4128.0,4127.9,1.33654]
[1759135387206,0.89306656,4128.0,4127.9,1.09294]
[1759135388098,0.89306656,4128.0,4127.9,0.84794]
[1759135388302,1.32899656,4128.0,4127.9,1.74987815]
[1759135389905,1.32899656,4128.0,4127.9,1.10813815]
[1759135390209,1.32899656,4128.0,4127.9,0.245]
[1759135390607,1.32899656,4128.0,4127.9,0.88674]
[1759135390910,1.32899656,4128.0,4127.9,1.09294]
[1759135391999,1.32899656,4128.0,4127.9,0.4508]
[1759135393009,1.32899656,4128.0,4127.9,0.245]
[1759135393506,1.32899656,4128.0,4127.9,0.68094]
[1759135394306,1.32899656,4128.0,4127.9,1.54407815]
[1759135394507,1.32899656,4128.0,4127.9,1.10813815]
[1759135395012,1.32899656,4128.0,4127.9,0.86313815]
[1759135395213,1.32899656,4128.0,4127.6,0.43596]
[1759135395214,0.7627,4127.8,4127.6,0.43596]
[1759135395411,0.3234,4127.7,4127.6,0.43596]
[1759135395613,1.19866,4127.7,4127.6,0.68096]
[1759135396107,1.19866,4127.7,4127.6,0.89756]
[1759135396307,1.19866,4127.7,4127.6,0.68096]
[1759135396910,1.19866,4127.7,4127.6,0.89756]
[1759135398709,0.43598,4127.5,4127.4,1.29470722]
[1759135398907,1.00178,4127.5,4127.4,1.73068722]
[1759135399109,0.8892,4127.5,4127.4,0.43598]
[1759135399309,0.8892,4127.5,4127.4,0.65258]
[1759135399614,1.32518,4127.5,4127.4,0.65258]
[1759135400614,0.8892,4127.5,4127.4,0.65258]
[1759135401815,0.8892,4127.5,4127.4,0.89758]
[1759135402515,0.8892,4127.5,4127.4,1.12228]
[1759135402817,0.8892,4127.5,4127.4,2.66038722]
[1759135404319,1.32518,4127.5,4127.4,1.36568]
[1759135404717,0.8892,4127.5,4127.4,1.36568]
[1759135404916,0.6693,4127.5,4127.4,1.36568]
[1759135406016,0.6693,4127.5,4127.4,1.12228]
[1759135406517,1.32228,4127.5,4127.4,1.12228]
[1759135406815,1.32228,4127.5,4127.4,1.36598]
[1759135407216,1.32228,4127.5,4127.4,1.12228]
[1759135407821,1.32228,4127.5,4127.4,2.41831539]
[1759135408223,1.32228,4127.5,4127.4,1.12228]
[1759135409024,0.8863,4127.5,4127.4,1.12228]
[1759135410334,1.32228,4127.5,4127.4,1.12228]
[1759135410832,0.8863,4127.5,4127.4,1.12228]
[1759135411234,1.32228,4127.5,4127.4,1.12228]
[1759135412435,1.32228,4127.5,4127.4,1.12229]
[1759135412626,1.32228,4127.5,4127.4,0.6863]
[1759135412829,1.32228,4127.5,4127.4,1.512595]
[1759135413127,1.32228,4127.5,4127.3,3.2078]
[1759135413128,1.19939,4127.4,4127.3,4.939785]
[1759135413331,1.19939,4127.4,4127.3,3.88879]
[1759135413526,1.19939,4127.4,4127.3,4.09929]
[1759135413734,1.19939,4127.4,4127.3,3.2078]
[1759135413929,1.19939,4127.4,4127.3,4.31697211]
[1759135414525,1.19939,4127.4,4127.3,4.75297211]
[1759135416338,0.7634,4127.4,4127.3,4.75297211]
[1759135417331,1.19939,4127.4,4127.3,4.75297211]
[1759135417836,0.7634,4127.4,4127.3,4.96347211]
[1759135419535,1.19939,4127.4,4127.3,4.96347211]
[1759135419837,0.7634,4127.4,4127.3,4.96347211]
[1759135420035,0.7634,4127.4,4127.3,4.0993]
[1759135421541,1.19939,4127.4,4127.3,4.0993]
[1759135423440,0.7634,4127.4,4127.3,4.0993]
[1759135423640,0.7634,4127.4,4127.3,3.8543]
[1759135424042,1.19939,4127.4,4127.3,4.0993]
[1759135424842,1.19939,4127.4,4127.3,3.6633]
[1759135425038,1.19939,4127.4,4127.3,4.0993]
[1759135425238,1.19939,4127.4,4127.3,4.96347211]
[1759135427338,1.19939,4127.4,4127.3,5.17137211]
[1759135428442,1.19939,4127.4,4127.3,4.92637211]
[1759135428741,1.19939,4127.4,4127.3,5.17137211]
[1759135428939,1.19939,4127.4,4127.3,4.92637211]
[1759135429139,1.19939,4127.4,4127.3,1.0994]
[1759135429839,0.5464,4127.4,4127.3,1.3431]
[1759135430142,0.98239,4127.4,4127.3,1.3431]
[1759135431444,0.98239,4127.4,4127.3,2.20727211]
[1759135435242,0.3234,4127.4,4127.3,2.20727211]
[1759135435444,0.43596,4127.7,4127.6,0.6769]
[1759135435745,0.43596,4127.7,4127.6,1.56889751]
[1759135435947,0.76506,4127.7,4127.6,1.56889751]
[1759135436147,0.76506,4127.7,4127.6,1.32589751]
[1759135436148,1.20056,4127.7,4127.6,1.32589751]
[1759135441147,1.20056,4127.7,4127.6,0.6779]
[1759135441851,0.5557,4127.7,4127.6,1.35687]
[1759135442052,0.43596,4127.7,4127.6,1.35687]
[1759135442354,0.76506,4127.7,4127.6,1.35687]
[1759135442548,0.90109656,4128.0,4127.7,0.4339]
[1759135442755,0.43899656,4128.0,4127.9,1.76121305]
[1759135442943,0.79469656,4128.0,4127.9,1.76121305]
[1759135443348,0.33216656,4128.0,4127.9,1.76121305]
[1759135443548,0.33216656,4128.0,4127.9,1.11284]
[1759135444545,0.33216656,4128.0,4127.9,1.97683668]
[1759135445150,1.12379656,4128.0,4127.9,1.54089668]
[1759135445356,1.12379656,4128.0,4127.9,0.6769]
[1759135445852,1.12379656,4128.0,4127.9,1.11284]
[1759135446555,1.12379656,4128.0,4127.9,0.6769]
[1759135446855,1.33269656,4128.0,4127.9,0.4339]
[1759135447355,1.33269656,4128.0,4127.9,0.86984]
[1759135447958,1.33269656,4128.0,4127.9,1.11284]
[1759135449651,1.33269656,4128.0,4127.9,0.6769]
[1759135450053,1.33269656,4128.0,4127.9,0.4339]
[1759135450355,1.33269656,4128.0,4127.8,0.86399668]
[1759135450657,1.20055,4127.8,4127.7,0.86399668]
[1759135450859,1.20055,4127.8,4127.7,1.32309668]
[1759135452063,1.20055,4127.8,4127.7,0.2151]
[1759135455150,1.19176,4127.7,4127.6,0.244]
[1759135455664,1.19176,4127.7,4127.6,0.4532]
[1759135455960,1.19176,4127.7,4127.6,0.88917]
[1759135456157,0.7558,4127.7,4127.6,1.11457]
[1759135456354,0.535,4127.7,4127.6,1.35807]
[1759135456762,0.97096,4127.7,4127.6,1.35807]
[1759135457159,0.3128,4127.7,4127.6,1.35807]
[1759135457558,0.43594,4127.9,4127.6,1.35807]
[1759135457559,0.31586656,4128.0,4127.9,1.11404]
[1759135457758,0.31586656,4128.0,4127.9,1.97701064]
[1759135458162,0.31586656,4128.0,4127.9,2.22101064]
[1759135458663,0.75179656,4128.0,4127.9,2.22101064]
[1759135459062,0.97399656,4128.0,4127.9,2.22101064]
[1759135459258,1.10279656,4128.0,4127.9,2.22101064]
[1759135459460,0.31586656,4128.0,4127.9,2.22101064]
[1759135459766,1.10278656,4128.0,4127.9,2.22101064]
[1759135460367,1.32358656,4128.0,4127.9,1.11454]
[1759135461564,1.32358656,4128.0,4127.9,1.35804]
[1759135461764,1.32358656,4128.0,4127.9,1.11454]
[1759135462768,1.32358656,4128.0,4127.9,0.87054]
[1759135463067,1.32358656,4128.0,4127.9,1.11454]
[1759135463362,0.31586656,4128.0,4127.9,1.35804]
[1759135463757,1.10279656,4128.0,4127.9,1.11404]
[1759135463964,1.32359656,4128.0,4127.9,1.11454]
[1759135465363,1.32359656,4128.0,4127.9,0.87054]
[1759135467268,1.32359656,4128.0,4127.9,1.73351064]
[1759135467464,0.88766656,4128.0,4127.9,1.73351064]
[1759135467968,1.32359656,4128.0,4127.9,1.73351064]
[1759135468772,0.66686656,4128.0,4127.9,1.97691064]
[1759135469972,1.10279656,4128.0,4127.9,1.97691064]
[1759135470471,0.66686656,4128.0,4127.9,1.97691064]
[1759135471074,0.31586656,4128.0,4127.9,1.97691064]
[1759135471372,0.31586656,4128.0,4127.9,1.11394]
[1759135471968,0.65176656,4128.0,4127.9,1.11394]
[1759135472374,0.33286656,4128.0,4127.9,1.11394]
[1759135472767,0.66876656,4128.0,4127.9,1.11394]
[1759135472974,0.66876656,4128.0,4127.9,2.409935]
[1759135474070,0.33286656,4128.0,4127.9,2.409935]
[1759135474277,0.33286656,4128.0,4127.9,1.11394]
[1759135474478,0.54296656,4128.0,4127.9,1.11394]
[1759135474876,0.66876656,4128.0,4127.9,1.11394]
[1759135477476,1.31368656,4128.0,4127.9,0.87054]
[1759135477677,1.31368656,4128.0,4127.9,2.16482494]
[1759135478074,1.31368656,4128.0,4127.9,1.72888494]
[1759135478274,1.31368656,4128.0,4127.9,0.64513]
[1759135480075,0.87776656,4128.0,4127.9,0.64513]
[1759135480274,0.87776656,4128.0,4127.9,0.85413]
[1759135480577,0.87776656,4128.0,4127.9,1.09753]
[1759135480975,0.87776656,4128.0,4127.9,0.85413]
[1759135481183,0.54796656,4128.0,4127.8,4.50208494]
[1759135481481,1.18483,4127.9,4127.8,3.64375]
[1759135481776,1.18483,4127.9,4127.8,3.88775]
[1759135482080,1.18483,4127.9,4127.8,4.10295]
[1759135482981,1.18483,4127.9,4127.8,3.423]
[1759135483284,1.18483,4127.9,4127.8,3.4518]
[1759135483485,1.18483,4127.9,4127.8,3.88775]
[1759135483687,1.18483,4127.9,4127.8,4.10295]
[1759135484683,1.18483,4127.9,4127.8,4.31195]
[1759135485283,1.18483,4127.9,4127.8,4.55535]
[1759135485485,0.3298,4127.9,4127.8,4.55535]
[1759135485685,0.3298,4127.9,4127.8,5.84963494]
[1759135485987,0.00306656,4128.0,4127.9,1.10353]
[1759135486181,0.00306656,4128.0,4127.9,2.39781494]
[1759135487584,0.00306656,4128.0,4127.9,1.10353]
[1759135488986,0.33286656,4128.0,4127.9,1.10353]
[1759135490284,0.33286656,4128.0,4127.9,0.86013]
[1759135490285,0.87776656,4128.0,4127.9,0.86013]
[1759135490490,0.87776656,4128.0,4127.9,1.10413]
[1759135490680,0.33286656,4128.0,4127.9,1.34753]
[1759135490985,0.00306656,4128.0,4127.9,1.34753]
[1759135491381,0.33286656,4128.0,4127.9,1.34753]
[1759135491779,0.33286656,4128.0,4127.9,3.07574917]
[1759135493190,0.00306656,4128.0,4127.9,3.07574917]
[1759135493989,0.32446656,4128.0,4127.9,3.07574917]
[1759135495185,0.00306656,4128.0,4127.9,3.07574917]
[1759135495990,0.32446656,4128.0,4127.9,3.07574917]
[1759135496390,0.00306656,4128.0,4127.9,3.07574917]
[1759135496796,0.32446656,4128.0,4127.9,3.07574917]
[1759135497089,0.00306656,4128.0,4127.9,1.34753]
[1759135498792,0.32446656,4128.0,4127.9,1.34753]
[1759135502095,0.53986656,4128.0,4127.9,1.34753]
[1759135502790,1.31918656,4128.0,4127.9,0.2152]
[1759135503000,1.31918656,4128.0,4127.9,0.89513]
[1759135504393,0.88326656,4128.0,4127.9,1.11233]
[1759135504596,0.00306656,4128.0,4127.9,3.08240971]
[1759135504897,0.00306656,4128.0,4127.9,1.35583]
[1759135505892,0.32446656,4128.0,4127.9,1.35583]
[1759135506998,0.67256656,4128.0,4127.9,1.35583]
[1759135507200,0.67256656,4128.0,4127.9,3.08250636]
[1759135507590,0.67256656,4128.0,4127.9,1.35583]
[1759135508501,0.32446656,4128.0,4127.9,1.35583]
[1759135508896,0.67256656,4128.0,4127.9,1.35583]
[1759135509602,0.67256656,4128.0,4127.9,1.11183]
[1759135509803,0.88326656,4128.0,4127.9,1.11233]
[1759135510302,0.88326656,4128.0,4127.9,1.35583]
[1759135510898,0.67256656,4128.0,4127.9,1.35583]
[1759135513699,0.67256656,4128.0,4127.9,0.86833]
[1759135513898,1.18293,4127.9,4127.8,3.64375]
[1759135514099,0.747,4127.9,4127.8,6.04821113]
[1759135517603,0.747,4127.9,4127.8,4.56455]
[1759135518305,0.00306656,4128.0,4127.9,0.43593]
[1759135518600,0.66716656,4128.0,4127.9,1.11273]
[1759135519708,0.87936656,4128.0,4127.9,2.59663233]
[1759135522309,0.87936656,4128.0,4127.9,2.84013233]
[1759135522907,0.31176656,4128.0,4127.9,2.84013233]
[1759135523605,0.66716656,4128.0,4127.9,2.84013233]
[1759135523809,0.66716656,4128.0,4127.9,3.08413233]
[1759135527405,0.66716656,4128.0,4127.9,1.72740233]
[1759135527406,1.31108656,4128.0,4127.9,1.72740233]
[1759135527609,0.44106656,4128.0,4127.9,1.34153]
[1759135527917,0.31176656,4128.0,4127.9,1.34153]
[1759135528206,0.64086656,4128.0,4127.9,1.34153]
[1759135531807,0.31176656,4128.0,4127.9,1.34153]
[1759135532014,0.00306656,4128.0,4127.9,3.06893233]
[1759135532615,0.33626656,4128.0,4127.9,1.34153]
[1759135533111,0.00306656,4128.0,4127.9,1.34153]
[1759135533508,0.33626656,4128.0,4127.9,1.34153]
[1759135535514,0.66536656,4128.0,4127.9,1.34153]
[1759135536115,0.87336656,4128.0,4127.9,1.09813]
[1759135536418,0.87336656,4128.0,4127.9,1.34153]
[1759135538215,0.87336656,4128.0,4127.9,1.09813]
[1759135538719,0.87336656,4128.0,4127.9,0.85413]
[1759135539018,0.87336656,4128.0,4127.9,1.09813]
[1759135539219,0.00306656,4128.0,4127.9,1.34153]
[1759135539611,0.00306656,4128.0,4127.9,1.09753]
[1759135539812,0.00306656,4128.0,4127.9,1.34153]
[1759135540216,0.33626656,4128.0,4127.9,1.34153]
[1759135541622,3.2078,4129.4,4128.9,1.08955]
[1759135541810,3.9538,4129.4,4129.3,1.09738]
[1759135542007,3.9538,4129.4,4129.3,1.34138]
[1759135542518,3.95667974,4129.4,4129.3,1.34366636]
[1759135543120,3.21067974,4129.4,4129.3,1.34366636]
[1759135543319,0.33607974,4129.4,4129.3,1.34366636]
[1759135543513,0.54087974,4129.4,4129.3,1.34366636]
[1759135544410,0.33607974,4129.4,4129.3,1.34366636]
[1759135544621,0.00287974,4129.4,4129.3,1.34366636]
[1759135544921,0.33607974,4129.4,4129.3,1.34366636]
[1759135545313,0.54087974,4129.4,4129.3,1.34366636]
[1759135547224,0.54087974,4129.4,4129.3,2.63379764]
[1759135550223,0.54087974,4129.4,4129.3,1.34366636]
[1759135552219,0.54087974,4129.4,4129.3,0.85625636]
[1759135552220,0.74887974,4129.4,4129.3,0.85625636]
[1759135552420,0.74887974,4129.4,4129.3,1.34365636]
[1759135554922,0.74887974,4129.4,4129.3,0.90788636]
[1759135555133,0.74887974,4129.4,4129.3,1.34365636]
[1759135557133,0.54087974,4129.4,4129.3,1.34365636]
[1759135557532,0.00287974,4129.4,4129.3,1.34365636]
[1759135557730,0.00287974,4129.4,4129.3,2.63378764]
[1759135557931,0.00287974,4129.4,4129.3,1.34365636]
[1759135561238,0.3232,4130.9,4130.5,0.3055]
[1759135561536,0.01211,4131.5,4131.4,0.6704]
[1759135561739,0.89751,4131.5,4131.4,3.6714]
[1759135562043,0.89751,4131.5,4131.4,4.53051056]
[1759135562335,0.90028071,4131.5,4131.4,4.74061056]
[1759135562533,0.43556,4131.4,4131.3,0.64386103]
[1759135562733,0.87346,4131.4,4131.2,0.64386103]
[1759135563046,0.13918071,4131.5,4131.0,0.85911056]
[1759135563047,0.13918071,4131.5,4131.4,0.2407]
[1759135563338,0.7611,4131.2,4131.1,0.244]
[1759135563530,1.1967,4130.9,4130.8,0.64386103]
[1759135563733,0.43562,4130.7,4130.6,0.64386103]
[1759135563932,0.43562,4130.7,4130.6,0.88786103]
[1759135563933,1.19672,4130.7,4130.6,0.88786103]
[1759135564140,0.43568,4130.2,4130.1,0.64386103]
[1759135564343,1.19683,4129.7,4129.6,3.4518]
[1759135564533,0.5395,4129.7,4129.6,4.1222]
[1759135564728,0.75891,4129.9,4129.7,0.2407]
[1759135564934,0.75891,4129.9,4129.8,0.9144]
[1759135565239,0.4379,4129.7,4129.6,3.85208765]
[1759135565442,0.7611,4129.7,4129.6,4.31568765]
[1759135565642,0.3232,4129.9,4129.7,0.2407]
[1759135565939,0.7611,4130.4,4130.3,0.2196]
[1759135566135,0.7611,4130.4,4130.3,0.6737]
[1759135566639,3.9689,4130.9,4130.8,0.2196]
[1759135566840,0.7611,4130.6,4130.5,0.64417946]
[1759135567046,1.19675,4130.6,4130.5,0.245]
[1759135567240,1.19675,4130.6,4130.5,0.88917946]
[1759135567638,0.8854,4130.5,4130.4,0.64417946]
[1759135567840,1.19676,4130.4,4130.3,0.245]
[1759135569339,1.19676,4130.4,4130.3,0.88917946]
[1759135570238,1.19676,4130.4,4130.3,0.64417946]
[1759135570435,1.19676,4130.4,4130.3,0.88917946]
[1759135571146,1.19676,4130.4,4130.3,0.245]
[1759135571347,0.7611,4130.3,4130.2,4.06691056]
[1759135571645,0.7611,4130.3,4130.2,4.31191056]
[1759135572348,0.7611,4130.3,4130.2,4.06691056]
[1759135572548,0.7611,4130.3,4130.2,3.4528]
[1759135572938,1.19677,4130.3,4130.2,3.2078]
[1759135573240,1.19677,4130.3,4130.2,4.09836908]
[1759135574738,1.19677,4130.3,4130.2,3.85336908]
[1759135576741,1.19677,4130.3,4130.2,0.64556908]
[1759135577344,1.17669,4130.1,4130.0,0.64556908]
[1759135577544,0.43572,4129.8,4129.7,0.64556908]
[1759135577744,0.43572,4129.8,4129.7,0.2171]
[1759135577946,1.17672,4129.8,4129.7,0.2171]
[1759135578144,1.17672,4129.8,4129.7,0.86290869]
[1759135581041,1.17672,4129.8,4129.7,0.2171]
[1759135581241,1.17672,4129.8,4129.7,0.86284341]
[1759135582937,1.17672,4129.8,4129.6,0.64574341]
[1759135583142,3.2078,4129.9,4129.5,0.64574341]
[1759135583143,0.86244,4129.6,4129.5,0.64574341]
[1759135583344,1.17674,4129.6,4129.5,0.64574341]
[1759135583642,6.17674,4129.6,4129.5,0.64574341]
[1759135583837,0.43577,4129.4,4129.3,0.64802977]
[1759135584150,1.17537,4129.4,4129.3,0.00228636]
[1759135584842,0.43577,4129.5,4129.4,0.43576]
[1759135585044,0.43574,4129.7,4129.6,0.2238]
[1759135585248,0.74294,4129.7,4129.6,0.6836]
[1759135585442,0.95684,4129.7,4129.6,0.6836]
[1759135585648,0.95684,4129.7,4129.6,0.9286]
[1759135585948,0.95684,4129.7,4129.6,1.36434]
[1759135585949,0.3072,4129.7,4129.6,1.36434]
[1759135586145,0.74292,4129.9,4129.8,0.6836]
[1759135586342,1.17532,4129.9,4129.8,1.30383468]
[1759135587153,0.3072,4131.0,4130.0,0.1129]
[1759135587363,0.64927071,4131.5,4131.4,0.65476]
[1759135587550,0.00277071,4131.5,4131.4,1.36516]
[1759135587754,0.00277071,4131.5,4131.4,2.22523319]
[1759135588055,0.00277071,4131.5,4131.4,2.65526978]
[1759135588257,0.64927071,4131.5,4131.4,1.11916]
[1759135588461,0.64927071,4131.5,4131.4,1.12456]
[1759135588658,0.43557,4131.3,4131.1,1.29010978]
[1759135588852,0.43557,4131.3,4130.8,0.64491833]
[1759135588853,0.3072,4131.2,4130.8,0.64491833]
[1759135589058,0.7396,4131.2,4131.1,0.443]
[1759135590453,0.5211,4131.2,4131.1,0.6836]
[1759135591960,0.7396,4131.2,4131.1,0.69]
[1759135593652,0.7396,4131.2,4131.1,0.443]
[1759135593860,0.7396,4131.2,4131.1,0.69]
[1759135594561,0.56373071,4131.5,4131.1,0.69]
[1759135594562,0.64927071,4131.5,4131.4,0.6836]
[1759135594757,0.00277071,4131.5,4131.4,1.36616]
[1759135595361,0.30997071,4131.5,4131.4,1.36616]
[1759135595570,0.86777071,4131.5,4131.4,1.33434311]
[1759135595760,0.7396,4131.3,4131.2,1.07877155]
[1759135595960,0.7396,4131.3,4131.2,1.32577155]
[1759135596461,0.7396,4131.3,4131.2,0.69]
[1759135596857,0.7396,4131.3,4131.2,0.4662]
[1759135597253,0.43559,4131.2,4131.1,0.85957155]
[1759135597559,0.00277071,4131.5,4131.4,0.87857]
[1759135597865,0.00277071,4131.5,4131.4,1.36617]
[1759135598059,0.00277071,4131.5,4131.4,2.01018385]
[1759135598256,0.00277071,4131.5,4131.4,1.36617]
[1759135598855,0.30997071,4131.5,4131.4,1.36617]
[1759135599261,0.30997071,4131.5,4131.4,2.00974478]
[1759135600062,0.52387071,4131.5,4131.4,2.00974478]
[1759135600257,0.00277071,4131.5,4131.4,2.00974478]
[1759135600853,0.30997071,4131.5,4131.4,2.00974478]
[1759135601364,0.64927071,4131.5,4131.4,2.00974478]
[1759135601756,0.43537071,4131.5,4131.4,2.00974478]
[1759135601956,0.00277071,4131.5,4131.4,2.00974478]
[1759135602160,0.64927071,4131.5,4131.4,1.76913478]
[1759135602359,0.64927071,4131.5,4131.4,2.00973478]
[1759135602565,1.08481071,4131.5,4131.4,2.00973478]
[1759135603561,0.64927071,4131.5,4131.4,2.00973478]
[1759135603760,1.08482071,4131.5,4131.4,2.00973478]
[1759135604265,1.08482071,4131.5,4131.4,1.76273478]
[1759135604463,1.08482071,4131.5,4131.4,1.33357478]